bitfinex/quotes_ETHUSD_20240721
["timestamp","ask_amount","ask_price","bid_price","bid_amount"]
[1721534571823,2.84503,3514.9,3514.8,0.14003759]
[1721534572725,4.32980054,3514.9,3514.8,0.14003759]
[1721534572876,4.32980054,3514.9,3514.8,2.62643759]
[1721534573072,2.84503,3514.9,3514.8,2.62643759]
[1721534573490,1.48477054,3515.0,3514.8,2.52934018]
[1721534573688,1.18779462,3514.9,3514.8,2.7822742]
[1721534573912,1.18779462,3514.9,3514.8,2.52934018]
[1721534574834,1.18779462,3515.0,3514.8,2.52934018]
[1721534575053,1.18779462,3514.9,3514.8,2.52934018]
[1721534575332,1.18779462,3515.0,3514.8,2.52934018]
[1721534575496,1.18779462,3515.0,3514.8,3.0668002]
[1721534575901,1.18779462,3515.0,3514.8,2.52934018]
[1721534576211,1.18779462,3515.0,3514.9,0.09707822]
[1721534577133,5.16943198,3515.1,3514.9,0.1400184]
[1721534577732,2.84495,3515.0,3514.9,0.1400184]
[1721534577943,2.84495,3515.0,3514.9,0.04294018]
[1721534578121,2.84495,3515.0,3514.9,0.1400184]
[1721534578500,4.03247278,3515.0,3514.9,0.1400184]
[1721534578705,2.84495,3515.0,3514.9,0.1400184]
[1721534578901,2.84495,3515.0,3514.9,0.04294018]
[1721534579143,2.84495,3515.0,3514.9,0.1400184]
[1721534579345,5.6899,3515.0,3514.9,0.04294018]
[1721534579503,6.33050391,3515.0,3514.9,0.04294018]
[1721534579697,6.88050391,3515.0,3514.9,0.04294018]
[1721534579931,9.23910391,3515.0,3514.9,0.04294018]
[1721534580134,14.16206799,3515.0,3514.9,0.04294018]
[1721534581243,12.08405391,3515.0,3514.9,0.04294018]
[1721534581544,14.16136807,3515.0,3514.9,0.04294018]
[1721534582104,12.08405391,3515.0,3514.9,0.04294018]
[1721534582304,12.08405391,3515.0,3514.0,1.68058628]
[1721534582305,2.84554,3514.3,3514.0,1.68058628]
[1721534582504,2.02689224,3514.2,3514.1,0.09434357]
[1721534582747,0.84,3514.2,3514.1,0.09434357]
[1721534583318,3.68559,3514.2,3514.1,0.09434357]
[1721534584233,4.57560954,3514.2,3514.1,0.09434357]
[1721534584845,3.68559,3514.2,3514.1,0.09434357]
[1721534585860,6.53118,3514.2,3514.1,0.09434357]
[1721534586008,9.05264213,3514.2,3514.1,0.09434357]
[1721534586208,2.84575,3514.0,3513.9,7.45]
[1721534586415,3.68575,3514.0,3513.9,7.45]
[1721534586844,4.57554917,3514.0,3513.6,2.2886]
[1721534587149,0.59319909,3513.8,3513.6,2.2886]
[1721534588567,1.43319909,3513.8,3513.6,2.2886]
[1721534588757,0.59319909,3513.7,3513.6,2.2886]
[1721534589249,3.73564917,3513.9,3513.3,7.45]
[1721534589250,4.27917909,3513.8,3513.3,7.45]
[1721534589419,1.43319909,3513.4,3513.3,7.45]
[1721534589620,1.43283962,3513.4,3513.3,7.45]
[1721534589863,0.84,3513.4,3513.3,7.45]
[1721534590206,4.27890186,3513.4,3512.6,2.84689]
[1721534590357,0.84,3513.2,3512.7,2.3748]
[1721534590549,0.59259244,3513.3,3512.8,0.522169]
[1721534591270,3.6863,3513.4,3512.9,0.09460053]
[1721534592196,0.84,3513.4,3512.9,0.09460053]
[1721534592386,0.59259244,3513.5,3512.9,0.09460053]
[1721534593304,4.27870244,3513.6,3512.9,0.09460053]
[1721534593607,0.59259244,3513.6,3513.1,2.84646]
[1721534593913,0.59259244,3513.7,3513.1,2.84646]
[1721534594071,4.27852244,3513.8,3513.2,0.09467543]
[1721534594395,4.27852244,3513.8,3513.1,2.84646]
[1721534596089,4.27852244,3513.8,3513.2,0.09467543]
[1721534601090,3.68593,3513.8,3513.2,0.09467543]
[1721534602209,3.68593,3513.8,3513.3,2.4977]
[1721534602424,3.68593,3513.8,3513.3,2.59235623]
[1721534603428,3.68609,3513.6,3513.3,2.59235623]
[1721534608309,2.84609,3513.6,3513.3,2.59235623]
[1721534608506,0.59259244,3514.0,3513.3,3.13624785]
[1721534608711,1.43259244,3514.2,3513.4,2.3364]
[1721534609013,3.68564,3514.2,3513.6,2.3364]
[1721534609402,3.68564,3514.2,3513.7,0.09456351]
[1721534609967,2.84564,3514.2,3513.7,0.09456351]
[1721534610164,0.59259244,3514.4,3513.9,2.84582]
[1721534610445,1.18640527,3514.8,3513.8,2.3367]
[1721534610446,4.27794244,3514.5,3514.0,0.09454568]
[1721534610658,4.27794244,3514.5,3513.8,2.3367]
[1721534611325,4.27794244,3514.5,3513.9,0.09454367]
[1721534611827,3.68535,3514.5,3513.9,0.09454367]
[1721534612049,3.68535,3514.5,3514.1,2.3367]
[1721534612461,3.68535,3514.5,3514.2,0.09448608]
[1721534612952,3.43778244,3514.7,3514.2,0.09448608]
[1721534613125,0.59259244,3514.8,3514.3,2.301]
[1721534613330,3.43763244,3514.9,3514.4,0.09442648]
[1721534615776,0.59259244,3514.9,3514.4,0.09442648]
[1721534616462,4.27756244,3515.0,3514.4,0.09442648]
[1721534617130,0.88979917,3515.1,3514.4,0.09442648]
[1721534617131,0.84,3514.8,3514.4,0.09442648]
[1721534617864,1.43259244,3514.8,3514.4,0.09442648]
[1721534618368,0.84,3514.6,3514.4,0.09442648]
[1721534619770,1.43259244,3514.8,3514.4,0.09442648]
[1721534621661,0.84,3514.8,3514.4,0.09442648]
[1721534622582,3.68511,3514.8,3514.4,0.09442648]
[1721534622741,4.27770244,3514.8,3514.4,0.09442648]
[1721534626447,2.84519,3514.7,3514.4,0.09442648]
[1721534626652,0.84,3514.6,3514.4,0.09442648]
[1721534629858,0.84,3514.6,3514.1,2.344]
[1721534630070,0.84,3514.6,3514.5,0.09427207]
[1721534630261,0.84,3514.6,3514.1,2.344]
[1721534630463,0.84,3514.6,3514.5,0.09427207]
[1721534630668,3.68527,3514.6,3514.1,2.344]
[1721534630889,3.68527,3514.6,3514.5,0.09428004]
[1721534631292,3.68527,3514.6,3514.1,2.344]
[1721534631788,3.68527,3514.6,3514.2,0.09433762]
[1721534634197,2.84527,3514.6,3514.2,0.09433762]
[1721534635916,2.84527,3514.6,3514.3,2.3613]
[1721534636281,2.84514,3514.8,3514.4,0.09429923]
[1721534636975,2.8452,3514.7,3514.4,0.09429923]
[1721534638178,2.8452,3514.7,3514.5,2.3613]
[1721534638374,2.8452,3514.7,3514.6,0.09425113]
[1721534638627,3.43762244,3514.9,3514.6,0.09425113]
[1721534638778,2.84511,3514.8,3514.6,0.09425113]
[1721534639222,2.84519,3514.7,3514.6,0.09425113]
[1721534642281,3.43762244,3514.9,3514.6,0.09425113]
[1721534644529,2.84511,3514.8,3514.6,0.09425113]
[1721534644694,3.43770244,3514.8,3514.6,0.09425113]
[1721534644895,4.27770244,3514.8,3514.6,0.09425113]
[1721534645100,3.68511,3514.8,3514.6,0.09425113]
[1721534647119,4.27770244,3514.8,3514.6,0.09425113]
[1721534648583,0.59259244,3514.7,3514.6,0.09425113]
[1721534649214,4.57490917,3514.8,3514.6,0.09425113]
[1721534649419,5.82907489,3514.8,3514.2,2.381]
[1721534649628,1.4326278,3514.6,3514.2,2.381]
[1721534650226,0.5926278,3514.5,3514.2,2.381]
[1721534651293,0.5926278,3514.4,3514.3,0.09427868]
[1721534651496,1.72979917,3514.6,3514.3,0.09427868]
[1721534651497,0.5926278,3514.5,3514.3,0.09427868]
[1721534651793,0.5926278,3514.5,3514.4,0.09425948]
[1721534651994,0.5926278,3514.5,3514.2,2.381]
[1721534652231,0.5926278,3514.5,3514.3,0.09427868]
[1721534652600,0.5926278,3514.5,3514.2,2.381]
[1721534652809,4.2780678,3514.4,3514.2,2.381]
[1721534653120,0.5926278,3514.4,3513.9,5.20513]
[1721534654234,4.57506917,3514.6,3513.9,5.20513]
[1721534654235,0.5926278,3514.3,3513.9,5.20513]
[1721534655931,0.5926278,3514.3,3513.9,2.84583]
[1721534656094,0.5926278,3514.3,3514.0,5.29305]
[1721534656498,0.5926278,3514.3,3514.1,2.4473]
[1721534656695,0.5926278,3514.2,3514.1,2.4473]
[1721534656905,0.5926278,3514.3,3514.1,2.4473]
[1721534657302,0.5926278,3514.3,3514.2,5.29289]
[1721534657505,0.5926278,3514.3,3514.2,6.2465723]
[1721534659330,0.5926278,3514.3,3514.2,5.29289]
[1721534665727,0.5926278,3514.4,3514.2,5.29289]
[1721534665930,0.5926278,3514.4,3514.3,2.84551]
[1721534666236,0.5926278,3514.4,3514.3,5.21588514]
[1721534667509,0.88979917,3514.6,3514.3,3.74594065]
[1721534667510,0.5926278,3514.5,3514.3,3.74594065]
[1721534667710,0.5926278,3514.5,3514.4,2.2761]
[1721534667910,0.5926278,3514.5,3514.4,2.37035595]
[1721534669336,0.5926278,3514.6,3514.4,2.37035595]
[1721534669509,0.5926278,3514.8,3514.7,2.84519]
[1721534669709,0.5926278,3514.8,3514.7,3.3667446]
[1721534669905,0.5926278,3514.8,3514.7,3.46091294]
[1721534670109,0.5926278,3514.9,3514.7,3.46091294]
[1721534673358,0.5926278,3515.0,3514.7,3.46091294]
[1721534673558,0.5926278,3514.9,3514.7,3.46091294]
[1721534673975,0.5926278,3515.0,3514.7,3.46091294]
[1721534677077,0.5926278,3515.0,3514.9,2.3208]
[1721534677278,2.02640527,3515.4,3514.9,2.3208]
[1721534677279,0.5926278,3515.1,3514.9,2.3208]
[1721534677586,0.5926278,3515.2,3514.9,2.40585763]
[1721534678154,0.5926278,3515.1,3514.9,5.25088763]
[1721534683097,0.88979917,3515.3,3514.9,5.25088763]
[1721534684178,0.84,3515.4,3514.9,5.25088763]
[1721534684353,0.84,3515.4,3514.9,2.40585763]
[1721534684770,0.84,3515.2,3514.9,0.08505763]
[1721534685195,0.84,3515.2,3514.7,2.84514]
[1721534685560,0.84,3515.2,3514.8,0.08494415]
[1721534686119,0.84,3515.2,3514.9,0.08492497]
[1721534686272,0.84,3515.2,3514.7,2.84514]
[1721534686457,0.84,3515.2,3515.0,0.08490578]
[1721534686902,0.84,3515.2,3514.7,2.84514]
[1721534687221,0.84,3515.2,3515.1,0.08488659]
[1721534687403,0.84,3515.2,3514.7,2.84514]
[1721534687562,0.84,3515.2,3515.1,0.08488659]
[1721534687753,0.84,3515.2,3514.7,2.84514]
[1721534687959,0.84,3515.2,3515.1,0.08488659]
[1721534688403,0.84,3515.2,3514.7,2.84514]
[1721534688590,0.84,3515.2,3515.1,0.08488659]
[1721534688774,0.84,3515.2,3514.7,2.84514]
[1721534688976,0.84,3515.2,3515.1,0.08488659]
[1721534689160,0.84,3515.2,3514.7,2.84514]
[1721534689359,0.84,3515.2,3515.1,0.0848707]
[1721534689776,0.84,3515.2,3514.7,2.84514]
[1721534689995,0.84,3515.2,3515.1,0.0848707]
[1721534690498,0.84,3515.2,3514.7,2.84514]
[1721534690802,0.84,3515.2,3515.1,0.0848707]
[1721534691161,0.84,3515.2,3514.6,2.4345]
[1721534691405,0.84,3515.2,3515.1,0.0848707]
[1721534691698,4.053235,3515.2,3515.1,0.08487953]
[1721534691903,4.053235,3515.2,3514.6,2.4345]
[1721534692100,3.68478,3515.2,3514.7,0.08495628]
[1721534694496,0.5932115,3515.0,3514.7,0.08495628]
[1721534698388,0.5932115,3515.1,3514.7,0.08495628]
[1721534699391,3.73459725,3515.2,3514.7,0.08495628]
[1721534699392,0.5932115,3515.0,3514.7,0.08495628]
[1721534699597,0.5932115,3515.1,3514.7,0.08495628]
[1721534700098,0.5932115,3515.0,3514.7,0.08495628]
[1721534700783,0.5932115,3515.1,3514.7,0.08495628]
[1721534701380,0.5932115,3515.0,3514.7,0.08495628]
[1721534701616,0.5932115,3515.1,3514.7,0.08495628]
[1721534701820,0.5932115,3515.0,3514.7,0.08495628]
[1721534706623,0.5932115,3514.9,3514.7,0.08495628]
[1721534706986,0.5932115,3515.0,3514.7,0.08495628]
[1721534708023,0.5932115,3515.0,3514.7,2.93013628]
[1721534708699,1.48374262,3515.5,3514.7,2.93013628]
[1721534708700,0.89053674,3516.1,3515.4,2.3678]
[1721534708948,1.78049114,3516.7,3515.4,2.3678]
[1721534708949,0.89053674,3516.7,3516.1,2.3678]
[1721534709099,1.186423,3516.9,3516.3,2.84388]
[1721534709100,0.89053674,3516.9,3516.3,2.84388]
[1721534709315,5.16691262,3517.2,3516.1,2.68858]
[1721534709316,0.89053674,3517.1,3516.4,0.08458694]
[1721534709511,0.89053674,3517.2,3516.6,2.84364]
[1721534709711,0.89053674,3517.2,3516.7,0.08452943]
[1721534709891,1.73053674,3517.3,3516.7,0.08452943]
[1721534710302,0.84,3517.3,3516.7,0.08452943]
[1721534710498,0.84,3517.3,3516.7,2.92805943]
[1721534711501,1.29734667,3517.3,3516.7,2.92805943]
[1721534714446,0.84,3517.3,3516.7,2.92805943]
[1721534714755,0.84,3517.3,3516.8,2.84348]
[1721534714941,0.84,3517.3,3516.9,0.0844911]
[1721534716653,2.84289,3517.6,3516.9,0.0844911]
[1721534716822,0.84,3517.4,3516.9,0.0844911]
[1721534719738,3.68289,3517.6,3516.9,0.0844911]
[1721534720064,4.335447,3517.6,3516.9,2.9278911]
[1721534722241,3.68289,3517.6,3516.9,2.9278911]
[1721534723476,2.84456829,3518.4,3516.9,2.9278911]
[1721534723477,2.84212,3518.5,3517.3,0.84]
[1721534723688,3.68224,3518.4,3517.6,2.84278]
[1721534724008,2.84229,3518.3,3517.7,0.08401304]
[1721534724125,3.52447233,3518.3,3517.7,0.08401304]
[1721534725151,0.68218233,3518.3,3517.7,2.92676304]
[1721534726275,3.6822,3518.4,3517.8,2.2628]
[1721534726659,3.6822,3518.4,3517.9,0.08397473]
[1721534728172,2.8422,3518.4,3517.9,0.08397473]
[1721534729967,0.84,3518.3,3517.9,0.08397473]
[1721534730632,0.84,3518.1,3517.9,0.08397473]
[1721534730838,0.84,3518.1,3517.5,2.84289]
[1721534731337,0.84,3518.1,3517.6,0.0840322]
[1721534731773,0.84,3518.1,3517.6,0.13746556]
[1721534734648,2.84236,3518.2,3517.6,0.13746556]
[1721534735177,0.84,3518.1,3517.6,0.13746556]
[1721534735343,0.84,3518.1,3517.3,5.10588]
[1721534735551,0.84,3518.1,3517.4,1.39299305]
[1721534736338,2.84253,3518.0,3517.4,1.39299305]
[1721534737271,2.84262,3517.9,3517.4,1.39299305]
[1721534747365,2.84262,3517.9,3517.4,0.13740505]
[1721534748080,2.84269,3517.8,3517.4,0.13740505]
[1721534752179,2.84257,3518.0,3517.4,0.13740505]
[1721534754336,3.43293829,3518.0,3517.4,0.13580814]
[1721534755635,0.59036829,3517.9,3517.4,0.13580814]
[1721534755840,3.43293829,3518.0,3517.4,0.13580814]
[1721534756453,0.59036829,3517.9,3517.4,0.13580814]
[1721534757940,3.43297829,3517.9,3517.4,0.13580814]
[1721534758303,0.59036829,3517.8,3517.4,0.13580814]
[1721534760540,0.84,3517.5,3517.4,0.13580814]
[1721534760758,7.712263,3517.5,3517.4,0.13580814]
[1721534761039,2.84334,3517.0,3516.8,12.24]
[1721534761241,4.57385732,3517.0,3516.8,12.24]
[1721534761936,1.73051732,3517.0,3516.8,12.24]
[1721534762139,0.59358324,3516.9,3516.8,12.24]
[1721534764234,0.89051732,3517.1,3516.8,12.24]
[1721534764235,0.59358324,3517.0,3516.8,12.24]
[1721534764605,0.59358324,3516.9,3516.8,12.24]
[1721534765308,0.59358324,3516.9,3516.7,2.3795]
[1721534765526,0.59358324,3517.1,3516.7,2.3795]
[1721534765940,0.59358324,3517.3,3516.7,2.3795]
[1721534766831,0.59358324,3517.3,3516.8,2.84348]
[1721534770996,1.43358324,3517.4,3516.8,2.84348]
[1721534771141,5.19630894,3517.4,3516.9,0.12832873]
[1721534771347,5.19630894,3517.4,3516.7,2.3795]
[1721534771348,0.84,3517.2,3516.7,2.3795]
[1721534771571,0.84,3517.2,3516.8,0.12834942]
[1721534771572,1.43358324,3517.2,3516.8,0.12834942]
[1721534772391,0.84,3517.2,3516.8,0.12834942]
[1721534772593,1.43358324,3517.2,3516.8,0.12834942]
[1721534774294,0.59358324,3517.1,3516.8,0.12834942]
[1721534774587,1.43358324,3517.0,3516.8,0.12834942]
[1721534774790,1.43358324,3517.0,3516.4,2.3743]
[1721534774949,1.43358324,3517.0,3516.5,0.12847492]
[1721534778061,4.27696324,3517.0,3516.5,0.12847492]
[1721534779462,3.43696324,3517.0,3516.5,0.12847492]
[1721534782200,2.84338,3517.0,3516.5,0.12847492]
[1721534782515,3.43696324,3517.0,3516.5,0.12847492]
[1721534785079,2.84338,3517.0,3516.5,0.12847492]
[1721534785285,3.43696324,3517.0,3516.5,0.12847492]
[1721534786095,2.84338,3517.0,3516.5,0.12847492]
[1721534786580,3.43696324,3517.0,3516.5,0.12847492]
[1721534786783,2.84338,3517.0,3516.5,0.12847492]
[1721534789222,0.59358324,3517.1,3516.6,0.53466549]
[1721534789366,0.59358324,3517.1,3516.7,0.12851952]
[1721534789708,0.59358324,3517.1,3516.4,5.21806]
[1721534789709,3.43675324,3517.2,3516.4,5.21806]
[1721534789922,3.43675324,3517.2,3516.8,0.12849883]
[1721534790210,2.84331,3517.1,3516.9,0.12847814]
[1721534790703,2.84331,3517.1,3516.4,5.21806]
[1721534790931,2.84331,3517.1,3516.4,6.769271]
[1721534791129,2.84331,3517.1,3516.5,0.12855829]
[1721534793174,3.43689324,3517.1,3516.5,0.12855829]
[1721534796322,0.59358324,3517.1,3516.5,2.97223829]
[1721534796669,4.57361732,3517.3,3516.5,2.97223829]
[1721534796670,0.59358324,3517.2,3516.5,2.97223829]
[1721534797025,0.59358324,3517.1,3516.5,2.97223829]
[1721534797173,0.59358324,3517.1,3516.5,4.53626712]
[1721534799206,0.59358324,3517.0,3516.5,4.53626712]
[1721534799403,0.59358324,3517.0,3516.5,2.97223829]
[1721534802418,0.59358324,3516.9,3516.5,2.97223829]
[1721534805480,0.59358324,3516.8,3516.5,2.97223829]
[1721534812817,0.59358324,3516.7,3516.5,2.97223829]
[1721534813535,0.59358324,3516.8,3516.5,2.97223829]
[1721534813838,0.59358324,3516.7,3516.5,2.97223829]
[1721534814720,0.59358324,3516.8,3516.5,2.97223829]
[1721534815463,0.59358324,3516.7,3516.5,2.97223829]
[1721534815829,0.59358324,3516.8,3516.5,2.97223829]
[1721534817231,0.59358324,3516.8,3516.6,2.84362]
[1721534817405,0.59358324,3516.8,3516.7,0.12851518]
[1721534819600,0.89051732,3516.9,3516.7,0.12851518]
[1721534819823,0.59463416,3516.8,3516.7,0.12851518]
[1721534821123,0.89051732,3516.9,3516.7,0.12851518]
[1721534822160,1.18735643,3517.0,3516.7,0.12851518]
[1721534822161,0.89051732,3516.8,3516.7,0.12851518]
[1721534822355,0.89051732,3516.8,3516.4,5.21806]
[1721534822555,0.89051732,3516.8,3516.7,0.12850562]
[1721534822768,0.89051732,3516.8,3516.4,5.21806]
[1721534822950,0.89051732,3516.8,3516.7,0.12850562]
[1721534823136,0.89051732,3516.8,3516.4,5.21806]
[1721534823475,2.84375,3516.5,3516.2,7.45]
[1721534823681,0.89051732,3516.4,3516.2,7.45]
[1721534825029,0.59427018,3516.3,3516.2,7.45]
[1721534827247,0.59427018,3516.4,3516.2,7.45]
[1721534827843,0.59427018,3516.4,3516.1,2.4282]
[1721534829381,0.59427018,3516.5,3516.1,5.27224]
[1721534829545,0.59427018,3516.6,3516.1,5.27224]
[1721534829748,0.59427018,3516.5,3516.1,5.27224]
[1721534829970,0.59427018,3516.6,3516.1,5.27224]
[1721534830509,0.59427018,3516.6,3516.2,2.84395]
[1721534830771,0.59427018,3516.8,3516.3,5.17213]
[1721534831339,0.59427018,3516.8,3516.4,0.12856943]
[1721534831735,0.59427018,3516.8,3516.3,5.17213]
[1721534831964,0.59427018,3516.8,3516.5,0.12854874]
[1721534832186,0.59427018,3516.8,3516.4,0.12856943]
[1721534832479,0.59427018,3516.8,3516.5,0.12854874]
[1721534832875,0.59427018,3516.8,3516.3,5.17213]
[1721534833041,0.59427018,3516.8,3516.6,0.12852805]
[1721534833243,0.59427018,3516.8,3516.3,5.17213]
[1721534833437,0.59427018,3516.8,3516.4,0.12856943]
[1721534833754,0.59427018,3516.8,3516.3,5.17213]
[1721534833955,0.59427018,3516.8,3516.5,0.12854874]
[1721534834288,0.59427018,3516.8,3516.6,0.12852805]
[1721534834668,0.59427018,3516.7,3516.3,5.17213]
[1721534834857,0.59427018,3516.7,3516.4,0.12856943]
[1721534835058,0.59427018,3516.7,3516.3,5.17213]
[1721534835259,0.59427018,3516.7,3516.4,0.12856943]
[1721534835584,0.59427018,3516.7,3516.3,5.17213]
[1721534835744,0.59427018,3516.7,3516.5,0.12854874]
[1721534835944,0.59427018,3516.7,3516.4,0.12856943]
[1721534836157,0.59427018,3516.7,3516.3,5.17213]
[1721534836158,0.59427018,3516.7,3516.6,0.12853848]
[1721534836358,0.59427018,3516.7,3516.5,0.12855917]
[1721534836582,0.59427018,3516.7,3516.6,0.12853848]
[1721534836946,0.59427018,3516.7,3516.3,5.17213]
[1721534837142,0.59427018,3516.7,3516.6,0.12853848]
[1721534837374,0.59427018,3516.7,3516.3,5.17213]
[1721534837852,0.59427018,3516.7,3516.4,0.12857986]
[1721534838049,0.59427018,3516.7,3516.3,5.17213]
[1721534838253,0.59427018,3516.7,3516.4,0.12857986]
[1721534838456,0.59427018,3516.7,3516.3,5.17213]
[1721534838651,0.59427018,3516.7,3516.4,0.12857986]
[1721534838992,0.59427018,3516.6,3516.2,2.84397]
[1721534839185,0.59427018,3516.6,3516.5,0.12855917]
[1721534839390,0.59427018,3516.6,3516.2,2.84397]
[1721534839854,0.59427018,3516.6,3516.3,0.12860056]
[1721534850421,0.59427018,3516.7,3516.3,0.12860056]
[1721534850634,0.59427018,3516.6,3516.3,0.12860056]
[1721534850809,0.59427018,3516.7,3516.3,2.97248056]
[1721534854426,0.59427018,3516.6,3516.3,2.97248056]
[1721534855455,0.59427018,3516.7,3516.3,2.97248056]
[1721534856723,0.89051732,3516.8,3516.3,2.97248056]
[1721534856724,0.59427018,3516.6,3516.3,2.97248056]
[1721534857118,0.59427018,3516.7,3516.3,2.97248056]
[1721534859068,0.59427018,3516.6,3516.3,2.97248056]
[1721534859440,0.59427018,3516.7,3516.3,2.97248056]
[1721534859640,0.59427018,3516.6,3516.3,2.97248056]
[1721534860052,0.59427018,3516.7,3516.3,2.97248056]
[1721534862577,0.59427018,3516.7,3516.4,2.3945]
[1721534862777,0.59427018,3516.7,3516.4,2.51973173]
[1721534863847,0.59427018,3516.6,3516.4,2.51973173]
[1721534868303,0.59427018,3516.5,3516.4,2.51973173]
[1721534868718,0.59427018,3516.6,3516.4,2.51973173]
[1721534870075,0.89051732,3516.8,3516.4,5.36354173]
[1721534870076,0.59427018,3516.7,3516.4,5.36354173]
[1721534870472,0.59427018,3516.7,3516.6,2.84365]
[1721534870779,1.18735643,3517.0,3516.6,5.4155586]
[1721534870780,0.59427018,3516.8,3516.6,5.4155586]
[1721534871481,0.59427018,3516.9,3516.7,2.84357]
[1721534871799,0.59427018,3516.9,3516.8,0.12516722]
[1721534875308,0.59427018,3517.0,3516.8,0.12516722]
[1721534875900,0.89051732,3517.0,3516.8,0.12516722]
[1721534876289,0.59458643,3516.9,3516.8,0.12516722]
[1721534878472,0.89051732,3516.9,3516.8,0.12516722]
[1721534878766,0.89051732,3516.9,3516.5,2.84368]
[1721534879063,0.59447238,3516.7,3516.5,2.84368]
[1721534880572,0.59447238,3516.7,3516.2,7.45]
[1721534880573,1.73051732,3516.7,3516.2,7.45]
[1721534880774,0.84,3516.3,3516.2,7.45]
[1721534880928,4.57440732,3516.3,3516.2,7.45]
[1721534881364,4.87124643,3516.3,3515.6,5.09485]
[1721534881562,0.59424147,3516.0,3515.6,5.09485]
[1721534882079,0.59424147,3516.1,3515.6,5.09485]
[1721534883556,0.59424147,3516.1,3515.7,2.84438]
[1721534885644,0.59424147,3516.1,3515.6,2.84445]
[1721534887356,3.00494147,3516.2,3515.6,2.84445]
[1721534889784,4.27813147,3516.3,3515.7,2.84438]
[1721534890587,3.68389,3516.3,3515.7,2.84438]
[1721534891303,3.68389,3516.3,3515.8,0.12520367]
[1721534891508,3.68389,3516.3,3515.7,2.84438]
[1721534891667,3.68389,3516.3,3515.8,0.12520367]
[1721534891862,3.68389,3516.3,3515.7,2.84438]
[1721534892292,3.68389,3516.3,3515.8,0.12520367]
[1721534892611,3.68389,3516.3,3515.7,2.84438]
[1721534892905,3.68389,3516.3,3515.8,0.12520367]
[1721534893201,3.68389,3516.3,3515.7,2.84438]
[1721534893404,3.68389,3516.3,3515.9,0.12518297]
[1721534893569,3.68389,3516.3,3515.8,0.12520367]
[1721534893769,3.68389,3516.3,3516.0,0.12516228]
[1721534894071,3.68389,3516.3,3516.1,0.12514158]
[1721534894072,5.32396484,3516.3,3516.1,0.12514158]
[1721534894272,5.32396484,3516.3,3515.7,2.84438]
[1721534894273,4.72972337,3516.3,3515.7,2.84438]
[1721534894470,3.68389,3516.3,3515.8,0.12520367]
[1721534894798,4.27813147,3516.3,3515.7,2.84438]
[1721534894965,4.27813147,3516.3,3515.9,0.12518297]
[1721534895166,3.68389,3516.3,3515.8,0.12519759]
[1721534895401,4.27813147,3516.3,3516.0,0.12515619]
[1721534895596,5.44270048,3516.3,3515.9,0.12517689]
[1721534895799,5.44270048,3516.3,3516.1,0.12513549]
[1721534895999,5.44270048,3516.3,3516.0,0.12515967]
[1721534896207,4.84845901,3516.3,3516.2,0.12511828]
[1721534896379,4.84845901,3516.3,3516.1,0.12513897]
[1721534896578,5.44270048,3516.3,3515.7,2.84438]
[1721534896772,3.68389,3516.3,3516.2,0.12512262]
[1721534897107,3.68389,3516.3,3515.7,2.84438]
[1721534897271,4.27813147,3516.3,3515.7,2.84438]
[1721534897477,3.68389,3516.3,3515.8,0.12520541]
[1721534897671,4.27813147,3516.3,3515.7,2.84438]
[1721534898003,4.27813147,3516.3,3515.8,0.12520541]
[1721534898300,3.68389,3516.3,3515.8,0.12520541]
[1721534898506,3.68389,3516.3,3515.9,0.12518471]
[1721534898812,4.27813147,3516.3,3515.7,2.84438]
[1721534899292,4.27813147,3516.3,3515.8,0.12520541]
[1721534899469,4.27813147,3516.3,3515.7,2.84438]
[1721534899908,4.27813147,3516.3,3515.8,0.12520541]
[1721534900123,4.27813147,3516.3,3515.7,2.84438]
[1721534900478,4.27813147,3516.3,3515.8,0.12520367]
[1721534900672,4.27813147,3516.3,3515.7,2.84438]
[1721534900875,3.68389,3516.3,3515.7,2.84438]
[1721534901111,3.68389,3516.3,3515.8,0.12520628]
[1721534901376,3.68389,3516.3,3515.7,2.84438]
[1721534901582,3.68389,3516.3,3515.9,0.12518558]
[1721534901887,5.32396484,3516.3,3515.8,0.12520628]
[1721534902093,5.32396484,3516.3,3515.9,0.12518993]
[1721534902478,5.32396484,3516.3,3515.7,2.84438]
[1721534902698,4.27813147,3516.3,3515.7,2.84438]
[1721534902904,4.27813147,3516.3,3515.8,0.12520628]
[1721534903104,4.27813147,3516.3,3515.7,2.84438]
[1721534903615,4.27813147,3516.3,3515.8,0.12520628]
[1721534903800,4.27813147,3516.3,3515.7,2.84438]
[1721534904121,4.27813147,3516.3,3515.9,0.12518558]
[1721534904414,4.27813147,3516.3,3516.0,0.12516488]
[1721534904574,4.27813147,3516.3,3515.7,2.84438]
[1721534904774,4.27813147,3516.3,3516.1,0.12514418]
[1721534905012,5.32396484,3516.3,3515.5,3.47935591]
[1721534905222,4.27813147,3516.3,3516.2,0.12509883]
[1721534905380,4.27813147,3516.3,3515.6,2.84445]
[1721534905580,4.27813147,3516.3,3516.2,0.12509883]
[1721534905817,3.68389,3516.3,3515.6,2.84445]
[1721534906107,3.68389,3516.3,3516.2,0.12509883]
[1721534906308,4.72972337,3516.3,3515.6,2.84445]
[1721534906512,3.68389,3516.3,3516.2,0.12509883]
[1721534906686,3.68389,3516.3,3515.6,2.84445]
[1721534907408,3.68389,3516.3,3515.7,0.12520232]
[1721534915318,4.27813147,3516.3,3515.7,0.12520232]
[1721534915518,0.59424147,3516.3,3515.8,2.4953]
[1721534915725,7.0202022,3516.5,3515.9,2.96938092]
[1721534915726,0.59424147,3516.5,3515.9,2.96938092]
[1721534915956,3.43791147,3516.6,3515.9,2.96938092]
[1721534919272,0.59424147,3516.5,3515.9,2.96938092]
[1721534920302,3.43791147,3516.6,3515.9,2.96938092]
[1721534920593,0.59424147,3516.5,3515.9,2.96938092]
[1721534921660,0.59424147,3516.4,3515.9,2.96938092]
[1721534922188,0.84,3516.3,3515.9,0.12516092]
[1721534922349,1.43424147,3516.3,3515.9,0.12516092]
[1721534923164,0.59424147,3516.2,3515.9,0.12516092]
[1721534923364,0.84,3516.3,3515.9,0.12516092]
[1721534923365,1.43424147,3516.3,3515.9,0.12516092]
[1721534924195,0.59424147,3516.2,3515.9,0.12516092]
[1721534925379,0.84,3516.3,3515.9,0.12516092]
[1721534925380,0.59424147,3516.1,3515.9,0.12516092]
[1721534925583,0.59424147,3516.2,3515.9,0.12516092]
[1721534926452,0.59424147,3516.3,3516.1,2.84406]